bitfinex-derivatives/quotes_BTCF0:USTF0_20251009
["timestamp","ask_amount","ask_price","bid_price","bid_amount"]
[1759991449790,0.01753,122190.0,122180.0,4.27269278]
[1759991449994,0.01753,122190.0,122180.0,4.27261278]
[1759991450791,0.01753,122190.0,122180.0,1.48797278]
[1759991450993,0.01753,122190.0,122180.0,4.27257278]
[1759991453892,0.01753,122190.0,122180.0,4.54039278]
[1759991454890,0.01753,122190.0,122180.0,1.75587278]
[1759991455090,0.01753,122190.0,122180.0,4.54015278]
[1759991457092,0.01753,122190.0,122180.0,4.27225278]
[1759991457297,0.01378,122200.0,122190.0,0.0818233]
[1759991457496,0.01378,122200.0,122190.0,1.82824608]
[1759991458094,0.01378,122200.0,122190.0,1.08796608]
[1759991458292,0.01378,122200.0,122190.0,3.87208608]
[1759991458494,0.01778,122200.0,122190.0,3.87208608]
[1759991458799,0.02078,122200.0,122190.0,4.27204608]
[1759991459191,0.02078,122200.0,122190.0,4.05693182]
[1759991461501,0.02078,122200.0,122190.0,4.05685182]
[1759991462901,0.02078,122200.0,122190.0,1.27285182]
[1759991463102,0.02078,122200.0,122190.0,4.05673182]
[1759991463497,0.02078,122200.0,122190.0,3.31653182]
[1759991463700,0.02078,122200.0,122190.0,4.15669182]
[1759991463999,0.01382,122210.0,122190.0,4.63966608]
[1759991464202,0.01382,122210.0,122200.0,1.08795938]
[1759991465202,0.01782,122210.0,122200.0,1.08795938]
[1759991465395,0.01782,122210.0,122200.0,1.35585938]
[1759991465695,0.01782,122210.0,122200.0,2.22815938]
[1759991466300,0.02082,122210.0,122200.0,2.22815938]
[1759991466898,0.007,122210.0,122200.0,2.45815938]
[1759991467099,0.01716,122210.0,122200.0,2.45815938]
[1759991467398,0.01716,122210.0,122200.0,1.71795938]
[1759991467593,0.01716,122210.0,122200.0,4.50167938]
[1759991467802,0.01716,122210.0,122200.0,4.27167938]
[1759991468002,0.01316,122210.0,122200.0,4.27167938]
[1759991468205,0.01316,122210.0,122200.0,4.27667938]
[1759991468605,0.01316,122210.0,122200.0,3.65651938]
[1759991468800,0.01382,122220.0,122210.0,0.0818099]
[1759991469008,0.01382,122220.0,122210.0,1.08795268]
[1759991469402,0.01382,122220.0,122210.0,3.87215268]
[1759991470207,0.01482,122220.0,122210.0,2.91631842]
[1759991470506,0.01482,122220.0,122210.0,3.65703842]
[1759991471005,0.01382,122220.0,122210.0,3.87315268]
[1759991471201,0.01382,122220.0,122210.0,3.87915268]
[1759991471396,0.01382,122220.0,122210.0,2.92323842]
[1759991471599,0.01382,122220.0,122210.0,3.66391842]
[1759991472406,0.01382,122220.0,122210.0,3.66383842]
[1759991472601,0.01382,122220.0,122210.0,3.66375842]
[1759991475610,0.01382,122220.0,122210.0,3.93165842]
[1759991476712,0.01382,122220.0,122210.0,3.93193842]
[1759991477214,0.01382,122220.0,122210.0,1.14773842]
[1759991477403,0.01382,122220.0,122210.0,3.93177842]
[1759991477910,0.01382,122220.0,122210.0,3.78793816]
[1759991479013,0.01382,122220.0,122210.0,3.78781816]
[1759991479813,0.01382,122230.0,122210.0,3.78781816]
[1759991480010,0.01382,122230.0,122220.0,0.72899156]
[1759991480202,0.01382,122230.0,122220.0,0.99689156]
[1759991481020,0.01382,122230.0,122220.0,1.73773156]
[1759991481210,0.01382,122230.0,122220.0,1.74073156]
[1759991484916,0.01382,122230.0,122220.0,3.4973033]
[1759991485216,0.01382,122230.0,122220.0,3.78369156]
[1759991486726,0.01382,122230.0,122220.0,3.51571156]
[1759991488416,0.01316,122240.0,122230.0,0.0817966]
[1759991488611,0.01316,122240.0,122230.0,1.75605312]
[1759991489622,0.01416,122240.0,122230.0,1.75605312]
[1759991490225,0.01316,122240.0,122230.0,1.75605312]
[1759991491023,0.01316,122240.0,122230.0,1.75601312]
[1759991491224,0.01316,122240.0,122230.0,1.01537312]
[1759991491425,0.01316,122240.0,122230.0,3.80201312]
[1759991493326,0.01316,122240.0,122230.0,3.91201312]
[1759991495323,0.01316,122250.0,122240.0,0.0817899]
[1759991495516,0.01316,122250.0,122240.0,1.01536642]
[1759991495721,0.01316,122250.0,122240.0,1.86612642]
[1759991496627,0.01416,122250.0,122240.0,1.86612642]
[1759991497418,0.01416,122250.0,122240.0,1.86712642]
[1759991499330,0.01416,122250.0,122240.0,1.2943499]
[1759991499526,0.01416,122250.0,122240.0,1.86712642]
[1759991500933,0.01316,122260.0,122250.0,0.0817832]
[1759991501137,0.01316,122270.0,122260.0,0.0817765]
[1759991501331,0.01316,122270.0,122260.0,1.46948476]
[1759991502029,0.41316,122270.0,122260.0,1.46948476]
[1759991502330,0.01316,122270.0,122260.0,1.46948476]
[1759991502527,0.01316,122270.0,122260.0,0.72896476]
[1759991502722,0.01316,122270.0,122260.0,3.51240476]
[1759991503130,0.01516,122270.0,122260.0,3.51240476]
[1759991503633,0.01516,122270.0,122260.0,0.72896476]
[1759991503931,0.01516,122270.0,122260.0,3.51228476]
[1759991504235,0.01516,122270.0,122260.0,2.77164476]
[1759991504429,0.01516,122270.0,122260.0,3.51528476]
[1759991504629,0.01316,122270.0,122260.0,3.51628476]
[1759991504932,0.01316,122270.0,122260.0,0.73296476]
[1759991505127,0.01316,122270.0,122260.0,3.51620476]
[1759991505730,0.01316,122270.0,122260.0,2.77560476]
[1759991505931,0.01316,122270.0,122260.0,3.51620476]
[1759991506333,0.01316,122270.0,122260.0,2.77560476]
[1759991506526,0.01316,122270.0,122260.0,3.51608476]
[1759991508134,0.01316,122270.0,122260.0,0.73296476]
[1759991508334,0.01316,122270.0,122260.0,3.51604476]
[1759991509635,0.01316,122270.0,122260.0,0.73296476]
[1759991509835,0.01316,122270.0,122260.0,3.51588476]
[1759991510531,0.01316,122270.0,122260.0,2.77548476]
[1759991510532,0.03644,122270.0,122260.0,2.77548476]
[1759991510726,0.03644,122270.0,122260.0,0.73296476]
[1759991510929,0.03644,122270.0,122260.0,3.51584476]
[1759991511135,0.01316,122270.0,122260.0,3.51584476]
[1759991512636,0.03647,122270.0,122260.0,0.73296476]
[1759991512836,0.43647,122270.0,122260.0,2.77544476]
[1759991513037,0.43647,122270.0,122260.0,0.73296476]
[1759991513639,0.43647,122270.0,122260.0,3.51584476]
[1759991515438,0.43647,122270.0,122260.0,2.77544476]
[1759991515640,0.43647,122270.0,122260.0,3.51576476]
[1759991516838,0.41316,122270.0,122260.0,2.77544476]
[1759991517136,0.41316,122270.0,122260.0,3.51576476]
[1759991518738,0.41316,122270.0,122260.0,2.77544476]
[1759991519140,0.41316,122270.0,122260.0,3.51564476]
[1759991519342,0.41316,122270.0,122260.0,3.2292565]
[1759991519642,0.41316,122270.0,122260.0,3.51564476]
[1759991520242,0.41316,122270.0,122260.0,2.4890565]
[1759991520440,0.41316,122270.0,122260.0,3.51560476]
[1759991521239,0.41316,122270.0,122260.0,0.73296476]
[1759991521440,0.41316,122270.0,122260.0,3.51552476]
[1759991521635,0.41316,122270.0,122260.0,2.77540476]
[1759991521840,0.41316,122270.0,122260.0,3.51552476]
[1759991524338,0.41316,122270.0,122260.0,2.77540476]
[1759991524941,0.41316,122270.0,122260.0,3.51544476]
[1759991525339,0.41316,122270.0,122260.0,2.77540476]
[1759991525542,0.41316,122270.0,122260.0,3.51544476]
[1759991526344,0.41316,122270.0,122260.0,0.73296476]
[1759991526536,0.41316,122270.0,122260.0,2.77540476]
[1759991526739,0.5168198,122270.0,122260.0,3.51536476]
[1759991529045,0.5168198,122270.0,122260.0,0.73296476]
[1759991529242,0.5168198,122270.0,122260.0,3.51536476]
[1759991529442,0.80320806,122270.0,122260.0,0.3648]
[1759991529642,0.5168198,122270.0,122260.0,2.7864]
[1759991529848,0.5168198,122270.0,122260.0,3.1472]
[1759991530341,0.5168198,122270.0,122260.0,3.14724]
[1759991531140,0.82298867,122270.0,122260.0,0.3648]
[1759991531344,0.80320806,122270.0,122260.0,2.7864]
[1759991531545,0.82298679,122270.0,122260.0,2.7864]
[1759991531947,0.53659853,122270.0,122260.0,2.7864]
[1759991532749,0.53659853,122270.0,122260.0,2.8681765]
[1759991533246,0.5168198,122270.0,122260.0,2.8681765]
[1759991533749,0.53658882,122270.0,122260.0,0.0857765]
[1759991533950,0.53658882,122270.0,122260.0,2.8681765]
[1759991534253,0.5168198,122270.0,122260.0,2.8681365]
[1759991534446,0.5168198,122270.0,122260.0,2.1282565]
[1759991534646,0.5168198,122270.0,122260.0,2.8681365]
[1759991537246,0.5168198,122270.0,122260.0,2.8681765]
[1759991538049,0.80320806,122270.0,122260.0,2.8681765]
[1759991539554,0.80320806,122270.0,122260.0,0.0857765]
[1759991539753,0.5168198,122270.0,122260.0,2.8681365]
[1759991539954,0.73155673,122270.0,122260.0,3.08287343]
[1759991541553,0.73155673,122270.0,122260.0,2.34311343]
[1759991541852,0.73155673,122270.0,122260.0,3.08283343]
[1759991544056,0.73155673,122270.0,122260.0,2.8680965]
[1759991544256,0.73155673,122270.0,122260.0,3.08283343]
[1759991544954,0.33155673,122270.0,122260.0,3.00105693]
[1759991545157,0.73155673,122270.0,122260.0,2.78624]
[1759991545357,0.73155673,122270.0,122260.0,3.00097693]
[1759991545560,0.73155673,122270.0,122260.0,2.78624]
[1759991545858,0.75091126,122270.0,122260.0,3.00097693]
[1759991546555,0.75091126,122270.0,122260.0,2.26133693]
[1759991546757,0.75091126,122270.0,122260.0,3.00097693]
[1759991547059,0.75091126,122270.0,122260.0,0.21873693]
[1759991547259,0.75091126,122270.0,122260.0,3.00101693]
[1759991547260,0.53617433,122270.0,122260.0,3.00101693]
[1759991547559,0.75091126,122270.0,122260.0,3.00101693]
[1759991547752,0.75091126,122270.0,122260.0,2.04664]
[1759991547952,0.75091126,122270.0,122260.0,2.8680565]
[1759991548355,0.75091126,122270.0,122260.0,3.08279343]
[1759991548750,0.75091126,122270.0,122260.0,3.08275343]
[1759991549256,0.75091126,122270.0,122260.0,2.78624]
[1759991549660,0.75091126,122270.0,122260.0,2.26137693]
[1759991549960,0.75091126,122270.0,122260.0,3.08275343]
[1759991550262,0.75091126,122270.0,122260.0,2.8680165]
[1759991550457,0.75091126,122270.0,122260.0,3.08275343]
[1759991553362,0.73155673,122270.0,122260.0,3.08275343]
[1759991555562,0.75092318,122270.0,122260.0,3.08275343]
[1759991556959,0.75092318,122270.0,122260.0,0.30051343]
[1759991557260,0.75092318,122270.0,122260.0,2.34315343]
[1759991557462,0.75092318,122270.0,122260.0,3.08267343]
[1759991557863,0.75092318,122270.0,122260.0,0.004]
[1759991558063,0.75092318,122270.0,122260.0,2.78616]
[1759991560966,0.75092318,122270.0,122260.0,0.004]
[1759991561168,0.75092318,122270.0,122260.0,2.78624]
[1759991561666,0.53618625,122270.0,122260.0,2.78624]
[1759991561868,0.75092318,122270.0,122260.0,2.78624]
[1759991562468,0.35092318,122270.0,122260.0,2.78624]
[1759991566073,0.35092318,122270.0,122260.0,2.8680165]
[1759991567169,0.35092318,122270.0,122260.0,0.004]
[1759991567370,1.32646011,122270.0,122260.0,2.78624]
[1759991567576,1.32646011,122270.0,122260.0,2.04668]
[1759991567873,1.32646011,122270.0,122260.0,2.78624]
[1759991568274,1.32646011,122270.0,122260.0,2.78524]
[1759991568474,1.32746011,122270.0,122260.0,2.78524]
[1759991568675,1.32746011,122270.0,122260.0,2.78324]
[1759991569175,1.32746011,122270.0,122260.0,0.001]
[1759991569473,1.32746011,122270.0,122260.0,2.47168]
[1759991572171,1.32746011,122270.0,122260.0,0.001]
[1759991572380,1.32746011,122270.0,122260.0,0.12244]
[1759991575779,1.32746011,122270.0,122260.0,0.7406]
[1759991577470,1.32746011,122270.0,122260.0,0.001]
[1759991577672,0.1181066,122230.0,122220.0,0.4425974]
[1759991577876,0.33284353,122230.0,122220.0,2.70021433]
[1759991578171,0.33284353,122230.0,122220.0,3.43981433]
[1759991578876,0.33384353,122230.0,122220.0,3.46681433]
[1759991580279,0.33384353,122230.0,122220.0,3.2520774]
[1759991580473,0.33384353,122230.0,122220.0,3.46681433]
[1759991581178,0.33384353,122230.0,122220.0,0.68433433]
[1759991581381,0.33384353,122230.0,122220.0,3.46693433]
[1759991582576,0.33384353,122230.0,122220.0,3.2521974]
[1759991582779,0.33384353,122230.0,122220.0,3.46693433]
[1759991583684,0.33384353,122230.0,122220.0,3.2521974]
[1759991583883,0.33384353,122230.0,122220.0,3.46693433]
[1759991584677,0.33384353,122230.0,122220.0,3.2521974]
[1759991584886,0.33384353,122230.0,122220.0,3.46693433]
[1759991586283,0.33384353,122230.0,122220.0,2.72729433]
[1759991586484,0.33384353,122230.0,122220.0,3.46697433]
[1759991586884,0.1191066,122230.0,122220.0,3.68171126]
[1759991588487,0.33384353,122230.0,122220.0,3.46697433]
[1759991589784,0.03731,122230.0,122220.0,3.68171126]
[1759991589985,0.01412,122230.0,122220.0,3.34203126]
[1759991590185,0.01412,122230.0,122220.0,4.08171126]
[1759991599498,0.01412,122230.0,122220.0,3.72091126]
[1759991599698,0.01412,122230.0,122220.0,3.91756819]
[1759991599902,0.01412,122230.0,122220.0,4.65724819]
[1759991600497,0.01412,122230.0,122220.0,4.73029951]
[1759991600900,0.01412,122230.0,122220.0,3.99061951]
[1759991601199,0.01412,122230.0,122220.0,4.73029951]
[1759991601902,0.01412,122230.0,122220.0,4.3724415]
[1759991602202,0.01412,122230.0,122220.0,4.3726415]
[1759991603297,0.01412,122230.0,122220.0,4.29959018]
[1759991608213,0.01412,122230.0,122220.0,3.55983018]
[1759991608405,0.01412,122230.0,122220.0,4.29947018]
[1759991608603,0.01412,122230.0,122220.0,1.51675018]
[1759991608907,0.01412,122230.0,122220.0,4.29947018]
[1759991609504,0.01412,122230.0,122220.0,1.2303974]
[1759991609703,0.01412,122230.0,122220.0,4.3725215]
[1759991610710,0.01412,122230.0,122220.0,1.5898015]
[1759991611004,0.40441938,122230.0,122220.0,2.8734833]
[1759991611207,0.40441938,122230.0,122220.0,3.6131233]
[1759991611710,0.40441938,122230.0,122220.0,0.8304033]
[1759991611912,0.40441938,122230.0,122220.0,3.6131233]
[1759991612512,0.80441938,122230.0,122220.0,2.07008]
[1759991612709,1.16521938,122230.0,122220.0,2.80972]
[1759991612905,1.16521938,122230.0,122220.0,0.027]
[1759991613108,1.16521938,122230.0,122220.0,2.07008]
[1759991613614,1.18484539,122230.0,122220.0,1.91842842]
[1759991613812,1.18484539,122230.0,122220.0,2.65806842]
[1759991614012,1.54484539,122230.0,122220.0,2.65806842]
[1759991614216,1.54484539,122230.0,122220.0,2.65822842]
[1759991615111,1.54984539,122230.0,122220.0,2.65822842]
[1759991615412,1.54984539,122230.0,122220.0,1.91842842]
[1759991615413,1.26249261,122230.0,122220.0,1.91842842]
[1759991615608,1.15084539,122230.0,122220.0,1.91842842]
[1759991615812,1.15084539,122230.0,122220.0,2.65834842]
[1759991616014,0.1171033,122220.0,122210.0,0.00277]
[1759991616215,0.78388209,122220.0,122210.0,2.78593]
[1759991616427,0.78388209,122220.0,122210.0,2.1278199]
[1759991616715,0.78388209,122220.0,122210.0,2.8677399]
[1759991618018,0.79388209,122220.0,122210.0,2.8677399]
[1759991619022,0.79388209,122220.0,122210.0,2.78593]
[1759991620520,0.50752931,122220.0,122210.0,2.8677399]
[1759991620720,0.79388209,122220.0,122210.0,2.8677399]
[1759991620923,0.79388209,122220.0,122210.0,2.78593]
[1759991621725,0.79388209,122220.0,122210.0,2.8676999]
[1759991623626,0.79388209,122220.0,122210.0,2.78589]
[1759991625021,0.5271033,122220.0,122210.0,2.1278199]
[1759991625226,0.41345608,122220.0,122210.0,2.8676999]
[1759991626024,0.41345608,122220.0,122210.0,2.1278199]
[1759991626220,0.77425608,122220.0,122210.0,2.8678999]
[1759991626420,0.77425608,122220.0,122210.0,0.00277]
[1759991626629,0.1172166,122200.0,122190.0,0.0845904]
[1759991626821,0.76436938,122200.0,122190.0,2.8683104]
[1759991627127,1.05072216,122200.0,122190.0,2.04364]
[1759991627329,1.05072216,122200.0,122190.0,2.78392]
[1759991627522,0.0945933,122190.0,122180.0,0.0845959]
[1759991627726,0.40357608,122190.0,122180.0,2.8685959]
[1759991627921,0.40357608,122190.0,122180.0,0.0845959]
[1759991628126,0.40357608,122190.0,122180.0,2.8685959]
[1759991628330,0.40357608,122190.0,122180.0,2.8686359]
[1759991628723,0.40357608,122190.0,122180.0,2.8826359]
[1759991628924,0.40457608,122190.0,122180.0,2.8956359]
[1759991629926,0.40457608,122190.0,122180.0,0.1115959]
[1759991630121,0.40457608,122190.0,122180.0,2.07349]
[1759991630431,0.40457608,122190.0,122180.0,2.89564]
[1759991639133,0.4241277,122190.0,122180.0,2.89564]
[1759991643239,1.1849277,122190.0,122180.0,0.027]
[1759991643643,1.1849277,122190.0,122180.0,0.76732]
[1759991644035,1.1849277,122190.0,122180.0,0.74766281]
[1759991644540,1.1849277,122190.0,122180.0,0.00734281]
[1759991644739,1.1849277,122190.0,122180.0,0.74766281]
[1759991645637,1.6049277,122190.0,122180.0,0.74766281]
[1759991652036,1.6049277,122190.0,122180.0,0.72800556]
[1759991653946,1.6049277,122190.0,122170.0,2.1257936]
[1759991653947,0.09446,122180.0,122170.0,2.1257936]
[1759991654147,1.1811644,122180.0,122170.0,2.8659136]
[1759991655341,1.1821644,122180.0,122170.0,2.8779136]
[1759991656541,1.1821644,122180.0,122170.0,2.8829136]
[1759991657049,0.8213644,122180.0,122170.0,2.8829136]
[1759991661851,0.8442744,122180.0,122170.0,2.8859236]
[1759991662750,0.55792162,122180.0,122170.0,2.8859236]
[1759991662953,0.8442744,122180.0,122170.0,2.8859236]
[1759991663853,0.98805572,122180.0,122170.0,2.8859236]
[1759991668557,0.35298867,122180.0,122170.0,2.36091065]
[1759991668862,0.01363,122180.0,122170.0,3.86179065]
[1759991669163,0.001,122180.0,122170.0,3.86179065]
[1759991669858,0.21606705,122180.0,122170.0,3.12171065]
[1759991670053,0.31052705,122180.0,122170.0,3.86179065]
[1759991670961,0.33343705,122180.0,122170.0,0.8624036]
[1759991671161,0.33343705,122180.0,122170.0,3.86179065]
[1759991675462,0.22869705,122180.0,122170.0,3.86179065]
[1759991676162,0.21606705,122180.0,122170.0,3.86179065]
[1759991678165,0.31110705,122180.0,122170.0,3.86179065]
[1759991679268,0.22927705,122180.0,122170.0,3.86179065]
[1759991682366,0.22927705,122180.0,122170.0,3.46179065]
[1759991684358,0.31110705,122180.0,122170.0,3.46179065]
[1759991685666,0.22927705,122180.0,122170.0,3.46179065]
[1759991685865,0.001,122180.0,122170.0,3.12171065]
[1759991686164,0.001,122180.0,122170.0,3.86179065]
[1759991687655,0.001,122180.0,122170.0,3.12171065]
[1759991687864,0.001,122180.0,122170.0,3.86179065]
[1759991692062,0.08283,122180.0,122170.0,3.86179065]
[1759991693275,0.08283,122180.0,122170.0,3.86175065]
[1759991693563,0.33341705,122180.0,122170.0,0.4624036]
[1759991693769,0.5484841,122180.0,122170.0,3.16477]
[1759991694071,0.5484841,122180.0,122170.0,3.2466067]
[1759991694967,0.11835,122180.0,122170.0,3.46167375]
[1759991695168,0.33341705,122180.0,122170.0,3.46167375]
[1759991695364,0.11835,122180.0,122170.0,3.46167375]
[1759991695570,0.31116705,122180.0,122170.0,3.46167375]
[1759991697367,0.08283,122180.0,122170.0,3.46167375]
[1759991697568,0.001,122180.0,122170.0,2.72163375]
[1759991697769,0.001,122180.0,122170.0,3.46167375]
[1759991699472,0.001,122180.0,122170.0,3.3367008]
[1759991699769,0.001,122180.0,122170.0,4.0767408]
[1759991699973,0.30965435,122200.0,122190.0,0.0829933]
[1759991699974,0.29688435,122200.0,122190.0,0.0829933]
[1759991700174,0.31649909,122200.0,122190.0,1.03810035]
[1759991700469,0.21506705,122200.0,122190.0,1.03810035]
[1759991700676,0.4553847,122210.0,122190.0,1.03810035]
[1759991700677,0.30965175,122210.0,122190.0,1.39890035]
[1759991700876,0.38151135,122210.0,122200.0,0.29805365]
[1759991701070,0.63151135,122210.0,122200.0,0.29805365]
[1759991701564,0.71189695,122210.0,122200.0,0.00117]
[1759991701765,0.71189695,122210.0,122200.0,2.8671066]
[1759991701974,0.46189695,122210.0,122200.0,2.8671066]
[1759991702568,0.46189695,122210.0,122200.0,2.8691066]
[1759991702569,0.48189695,122210.0,122200.0,2.8691066]
[1759991702765,0.35389695,122210.0,122200.0,2.8691066]
[1759991703165,0.38389695,122210.0,122200.0,2.8691066]
[1759991703577,0.65389695,122210.0,122200.0,2.8691066]
[1759991703772,0.63389695,122210.0,122200.0,2.8691066]
[1759991703972,0.61389695,122210.0,122200.0,2.8691066]
[1759991704175,0.66389695,122210.0,122200.0,2.8691066]
[1759991704376,0.64389695,122210.0,122200.0,2.8691066]
[1759991704575,0.62389695,122210.0,122200.0,2.8691066]
[1759991705678,1.709764,122210.0,122200.0,0.002]
[1759991705874,1.7293475,122210.0,122200.0,2.04604]
[1759991706177,1.2992134,122210.0,122200.0,2.78604]
[1759991706378,1.7293475,122210.0,122200.0,2.78604]
[1759991708082,1.7293475,122210.0,122200.0,2.04604]
[1759991708278,1.7293475,122210.0,122200.0,2.78713]
[1759991709574,1.51428045,122210.0,122200.0,2.8689466]
[1759991710777,1.51428045,122210.0,122200.0,0.00317]
[1759991710969,1.7293475,122210.0,122200.0,2.78029]
[1759991712080,1.7293475,122210.0,122200.0,2.78705]
[1759991713680,1.7293475,122210.0,122200.0,0.00317]
[1759991714180,1.7293475,122210.0,122200.0,2.78701]
[1759991714379,1.709764,122210.0,122200.0,2.78701]
[1759991716082,1.72928935,122210.0,122200.0,2.78701]
[1759991716581,1.709764,122210.0,122200.0,2.78701]
[1759991717081,1.709764,122210.0,122200.0,0.00317]
[1759991717277,1.709764,122210.0,122200.0,2.04705]
[1759991717581,1.32928937,122210.0,122200.0,2.78697]
[1759991721286,1.72928937,122210.0,122200.0,2.04588]
[1759991721585,1.72928937,122210.0,122200.0,0.002]
[1759991721780,1.72928937,122210.0,122200.0,2.7858]
[1759991722279,1.72928937,122210.0,122200.0,0.002]
[1759991722486,2.09008937,122210.0,122200.0,2.04588]
[1759991722685,2.09008937,122210.0,122200.0,2.56208]
[1759991723891,1.94666289,122210.0,122200.0,2.56208]
[1759991724382,1.94666289,122210.0,122200.0,2.7858]
[1759991726397,1.94666289,122210.0,122200.0,2.04588]
[1759991726690,1.65995527,122210.0,122200.0,2.04588]
[1759991726890,1.94666289,122210.0,122200.0,2.7858]
[1759991728793,1.94666289,122210.0,122200.0,2.04588]
[1759991729187,1.94666289,122210.0,122200.0,2.7858]
[1759991730798,1.94666289,122210.0,122200.0,2.04588]
[1759991731098,1.94666289,122210.0,122200.0,2.7858]
[1759991732193,1.94666289,122210.0,122200.0,2.04588]
[1759991732398,1.94666289,122210.0,122200.0,2.7858]
[1759991735998,1.94666289,122210.0,122200.0,2.02724827]
[1759991736199,1.54666289,122210.0,122200.0,2.10906487]
[1759991736494,0.75405299,122210.0,122200.0,2.10906487]
[1759991736694,0.04152537,122210.0,122200.0,3.24898487]
[1759991737202,0.022,122210.0,122200.0,3.53569249]
[1759991738408,0.1038099,122210.0,122200.0,3.53569249]
[1759991738898,0.022,122210.0,122200.0,2.79577249]
[1759991739098,0.022,122210.0,122200.0,3.89649249]
[1759991739307,0.022,122210.0,122200.0,3.15657249]
[1759991739603,0.022,122210.0,122200.0,3.89649249]
[1759991740103,0.022,122210.0,122200.0,3.15657249]
[1759991740303,0.022,122210.0,122200.0,3.89649249]
[1759991742303,0.022,122210.0,122200.0,3.49649249]
[1759991742703,0.022,122210.0,122200.0,3.20978487]
[1759991743002,0.022,122210.0,122200.0,3.49649249]
[1759991743198,0.022,122210.0,122200.0,0.4437866]
[1759991743505,0.022,122210.0,122200.0,3.51417422]
[1759991743802,0.022,122210.0,122200.0,3.51413422]
[1759991744003,0.022,122210.0,122200.0,0.73049422]
[1759991744203,0.022,122210.0,122200.0,3.51409422]
[1759991744504,0.022,122210.0,122200.0,0.73049422]
[1759991744805,0.022,122210.0,122200.0,3.51409422]
[1759991746010,0.022,122210.0,122200.0,0.73049422]
[1759991746207,0.022,122210.0,122200.0,3.51405422]
[1759991748506,0.022,122210.0,122200.0,3.51393422]
[1759991749905,0.022,122210.0,122200.0,0.4437866]
[1759991750096,0.022,122210.0,122200.0,2.77413422]
[1759991750302,0.022,122210.0,122200.0,3.51393422]
[1759991753702,0.022,122210.0,122200.0,0.73049422]
[1759991753895,0.022,122210.0,122200.0,3.51381422]
[1759991754704,0.1394399,122210.0,122200.0,0.4437866]
[1759991755006,0.42614752,122210.0,122200.0,2.40553]
[1759991755207,0.42614752,122210.0,122200.0,2.78449]
[1759991755410,0.42614752,122210.0,122200.0,2.8663066]
[1759991756804,0.42614752,122210.0,122200.0,2.1265466]
[1759991757008,0.82614752,122210.0,122200.0,2.1265466]
[1759991757309,0.1174533,122200.0,122190.0,0.0829913]
[1759991757510,0.40416092,122200.0,122190.0,2.8664313]
[1759991758009,0.1174533,122200.0,122190.0,2.8664313]
[1759991758211,0.40416092,122200.0,122190.0,2.8664313]
[1759991758406,0.40416092,122200.0,122190.0,2.8714313]
[1759991758407,0.40516092,122200.0,122190.0,2.8714313]
[1759991758908,0.41416092,122200.0,122190.0,2.8714313]
[1759991759212,0.41416092,122200.0,122190.0,0.0879913]
[1759991759407,0.41416092,122200.0,122190.0,2.8714713]
[1759991759608,0.1274533,122200.0,122190.0,2.4924313]
[1759991759809,0.02274,122200.0,122190.0,3.2322313]
[1759991760313,0.1045566,122200.0,122190.0,3.2322313]
[1759991760511,0.02274,122200.0,122190.0,3.2322313]
[1759991760811,0.01,122200.0,122190.0,2.77913892]
[1759991761009,0.01,122200.0,122190.0,3.91909892]
[1759991762417,0.01,122200.0,122190.0,3.91913892]
[1759991763013,0.01,122200.0,122190.0,3.99219024]
[1759991764419,0.01,122200.0,122190.0,3.91913892]
[1759991764714,0.01,122200.0,122190.0,3.17913892]
[1759991764916,0.01,122200.0,122190.0,3.91913892]
[1759991766018,0.01,122200.0,122190.0,3.91909892]
[1759991766715,0.01,122200.0,122190.0,4.18699892]
[1759991767216,0.01,122200.0,122190.0,1.40339892]
[1759991767417,0.01,122200.0,122190.0,4.18695892]
[1759991768718,0.01,122200.0,122190.0,4.26001024]
[1759991769119,0.01,122200.0,122190.0,4.18695892]
[1759991769318,0.01,122200.0,122190.0,3.44703892]
[1759991769522,0.01,122200.0,122190.0,4.18687892]
[1759991770824,0.01,122200.0,122190.0,4.25993024]
[1759991771520,0.01,122200.0,122190.0,4.62073024]
[1759991772419,0.01,122200.0,122190.0,4.33402262]
[1759991772721,0.01,122200.0,122190.0,4.62073024]
[1759991773022,0.01,122200.0,122190.0,4.62065024]
[1759991773727,0.01,122200.0,122190.0,1.83725024]
[1759991774320,0.01,122200.0,122190.0,4.62065024]
[1759991775122,0.01,122200.0,122190.0,4.75645024]
[1759991775322,0.01,122200.0,122190.0,4.62065024]
[1759991775523,0.01,122200.0,122190.0,4.54759892]
[1759991777126,0.01,122200.0,122190.0,1.76419892]
[1759991777323,0.01,122200.0,122190.0,4.62061024]
[1759991777524,0.01,122200.0,122190.0,3.80779892]
[1759991777725,0.01,122200.0,122190.0,4.54755892]
[1759991779324,0.01,122200.0,122190.0,1.0774913]
[1759991779626,0.39143422,122200.0,122190.0,3.5000133]
[1759991779927,0.39143422,122200.0,122190.0,2.7602533]
[1759991780126,0.1047266,122200.0,122190.0,3.5000133]
[1759991780322,0.02291,122200.0,122190.0,3.5000133]
[1759991780525,0.1047266,122200.0,122190.0,3.5000133]
[1759991781126,0.1047266,122200.0,122190.0,2.7602533]
[1759991781528,0.1047266,122200.0,122190.0,3.5000133]
[1759991781727,0.1047266,122200.0,122190.0,2.7602533]
[1759991781923,0.81422422,122200.0,122190.0,2.67847]
[1759991782129,0.81422422,122200.0,122190.0,2.7602933]
[1759991782329,0.81422422,122200.0,122190.0,3.5000533]
[1759991783823,0.95748232,122200.0,122190.0,3.5000533]
[1759991784131,0.74249946,122200.0,122190.0,3.71503616]
[1759991784437,0.74249946,122200.0,122190.0,3.44713616]
[1759991784625,0.74249946,122200.0,122190.0,3.2321533]
[1759991784933,0.74249946,122200.0,122190.0,2.70737616]
[1759991785430,0.74249946,122200.0,122190.0,3.44717616]
[1759991786931,0.74249946,122200.0,122190.0,2.4923933]
[1759991787130,0.95748232,122200.0,122190.0,3.2321933]
[1759991793336,0.95748232,122200.0,122190.0,2.8713933]
[1759991793535,0.95748232,122200.0,122190.0,3.2321933]
[1759991795041,0.95748232,122200.0,122190.0,3.44717616]
[1759991796740,0.5275166,122200.0,122190.0,3.44717616]
[1759991797039,0.74249946,122200.0,122190.0,3.44717616]
[1759991800841,0.74249946,122200.0,122190.0,2.70737616]
[1759991801041,0.74249946,122200.0,122190.0,3.44721616]
[1759991801242,0.74249946,122200.0,122190.0,2.70737616]
[1759991801442,0.74249946,122200.0,122190.0,3.44721616]
[1759991802143,0.95748232,122200.0,122190.0,3.44721616]
[1759991802346,0.55748232,122200.0,122190.0,3.44721616]
[1759991808745,0.1275166,122200.0,122190.0,3.44721616]
[1759991808946,0.1275166,122200.0,122190.0,3.44717616]